lending/lending_fUSD_20240807
["ID","MTS","AMOUNT","RATE_DAILY","PERIOD"]
[334382185,1723014328894,-476.483951,0.00010934,2]
[334382186,1723014328920,-192.592539,0.00010934,2]
[334382187,1723014328941,-180.205611,0.00010934,2]
[334382188,1723014328962,-152.12110468,0.00010958,2]
[334382189,1723014328982,-512.8016659,0.00010958,2]
[334382190,1723014329002,-500.0,0.00010958,2]
[334382191,1723014329024,-500.0,0.00010958,2]
[334382192,1723014329044,-500.0,0.00010958,2]
[334382193,1723014329065,-500.0,0.00010958,2]
[334382194,1723014329087,-272.46664643,0.00010958,2]
[334382195,1723014329108,-345.75730213,0.00010958,2]
[334382196,1723014329129,-500.0,0.00010958,2]
[334382197,1723014329159,-500.0,0.00010958,2]
[334382198,1723014329182,-500.0,0.00010958,2]
[334382199,1723014329202,-500.0,0.00010958,2]
[334382200,1723014329224,-371.64,0.00010959,2]
[334382201,1723014329246,-309.7,0.00010959,2]
[334382202,1723014329268,-258.08,0.00010959,2]
[334382203,1723014329289,-215.07,0.00010959,2]
[334382204,1723014329310,-179.22,0.00010959,2]
[334382205,1723014329333,-896.14,0.00010959,2]
[334382206,1723014329354,-420.0,0.0001097,2]
[334382207,1723014329376,-158.18637798,0.00010973,2]
[334382208,1723014329397,-199.75663779,0.00010973,2]
[334382209,1723014329423,-1583.0,0.00010982,2]
[334382210,1723014329443,-5838.0,0.00010982,2]
[334382211,1723014329463,-5130.0,0.00010982,2]
[334382212,1723014329483,-1256.0,0.00010982,2]
[334382213,1723014329502,-288.0,0.00010982,2]
[334382214,1723014329523,-622.0,0.00010982,2]
[334382215,1723014329543,-1925.0,0.00010982,2]
[334382216,1723014329563,-276.707,0.00010982,2]
[334382217,1723014329584,-574.498,0.00010982,2]
[334382218,1723014329605,-810.0,0.00010982,2]
[334382219,1723014329627,-1344.0,0.00010982,2]
[334382220,1723014329647,-694.0,0.00010982,2]
[334382221,1723014329669,-677.337,0.00010982,2]
[334382222,1723014329690,-1894.0,0.00010982,2]
[334382223,1723014329711,-150.0,0.00010982,2]
[334382224,1723014329732,-3289.0,0.00010982,2]
[334382225,1723014329752,-150.27,0.00010982,2]
[334382226,1723014329773,-170.58669656,0.00010996,2]
[334382227,1723014329794,-682.34678624,0.00010997,2]
[334382228,1723014329993,-63633.2764948,0.00010998,2]
[334382229,1723014330014,-13558.2897024,0.00010998,2]
[334382230,1723014330036,-5648.0922079,0.00010998,2]
[334382231,1723014330058,-8726.916271,0.00010998,2]
[334382232,1723014330081,-23927.7558174,0.00010998,2]
[334382233,1723014330102,-500.0,0.00010999,2]
[334382234,1723014330123,-186.05983828,0.00010999,2]
[334382235,1723014330146,-391.93599806,0.00010999,2]
[334382236,1723014330174,-300.02,0.00010999,2]
[334382237,1723014330197,-5286.46415732,0.00010999,2]
[334382238,1723014330221,-578.91759455,0.00010999,2]
[334382239,1723014330242,-3709.08509502,0.00010999,2]
[334382240,1723014330264,-500.0,0.00010999,2]
[334382241,1723014330286,-500.0,0.00010999,2]
[334382242,1723014330307,-500.0,0.00010999,2]
[334382243,1723014330329,-547.01690445,0.00010999,2]
[334382244,1723014330350,-500.0,0.00010999,2]
[334382245,1723014330372,-500.0,0.00010999,2]
[334382246,1723014330394,-631.6,0.00010999,2]
[334382247,1723014330419,-1610.64,0.00010999,2]
[334382248,1723014330445,-500.0,0.00010999,2]
[334382249,1723014330467,-500.0,0.00010999,2]
[334382250,1723014330490,-500.0,0.00010999,2]
[334382251,1723014330511,-500.0,0.00010999,2]
[334382252,1723014330536,-338.73,0.00010999,2]
[334382253,1723014330558,-500.0,0.00010999,2]
[334382254,1723014330579,-500.0,0.00010999,2]
[334382255,1723014330600,-500.0,0.00010999,2]
[334382256,1723014330622,-500.0,0.00010999,2]
[334382257,1723014330644,-500.0,0.00010999,2]
[334382258,1723014330667,-500.0,0.00010999,2]
[334382259,1723014330690,-500.0,0.00010999,2]
[334382260,1723014330711,-200.0,0.00010999,2]
[334382261,1723014330732,-500.0,0.00010999,2]
[334382262,1723014330754,-500.0,0.00010999,2]
[334382263,1723014330776,-500.0,0.00010999,2]
[334382264,1723014330798,-1089.0,0.00011,2]
[334382265,1723014330822,-98272.45428359,0.00011,2]
[334382266,1723014330848,-461146.29829013,0.00011,2]
[334382267,1723014330873,-1156471.86258323,0.00011,2]
[334382268,1723014330898,-2718398.46464421,0.00011,2]
[334382269,1723014330924,-263254.32450941,0.00011,2]
[334382270,1723014330949,-1537407.95599721,0.00011,2]
[334382271,1723014330970,-1120.58099864,0.00011,2]
[334382272,1723014330995,-4365175.79078772,0.00011,2]
[334382273,1723014331017,-414094.40632516,0.00011,2]
[334382274,1723014331038,-2000.0,0.00011,2]
[334382275,1723014331064,-130391.6218546,0.00011,2]
[334382278,1723014427596,4845.5932,9.541e-05,2]
[334382279,1723014543341,761.64151712,9.541e-05,2]
[334382284,1723014594752,-150.0,0.00011,3]
[334382287,1723014620784,164.44,9.197e-05,2]
[334382288,1723014620989,164.44,9.202e-05,2]
[334382289,1723014621194,164.44,9.207e-05,2]
[334382290,1723014621387,164.44,9.212e-05,2]
[334382291,1723014621576,164.44,9.217e-05,2]
[334382292,1723014621811,164.44,9.223e-05,2]
[334382293,1723014622024,164.44,9.228e-05,2]
[334382294,1723014622234,164.44,9.233e-05,2]
[334382295,1723014622432,164.44,9.238e-05,2]
[334382296,1723014622635,164.44,9.243e-05,2]
[334382312,1723014631677,-791.24822385,0.00010027,2]
[334382314,1723014631691,-2977.63233919,0.00010027,2]
[334382315,1723014631703,-548.83861046,0.00010027,2]
[334382317,1723014631712,-452.71151769,0.00010126,2]
[334382318,1723014631723,-1007.07587274,0.00010126,2]
[334382321,1723014631762,-957.21260957,0.00010126,2]
[334382322,1723014631771,-59.83051787,0.00010127,2]
[334382324,1723014631783,-516.44568421,0.00010127,2]
[334382326,1723014631794,-423.72379792,0.00010127,2]
[334382327,1723014631804,-810.51889632,0.00010436,2]
[334382329,1723014631813,-5638.658,0.000107,2]
[334382330,1723014631823,-150.0,0.00010799,2]
[334382332,1723014631833,-300.0,0.00010799,2]
[334382333,1723014631843,-300.0,0.00010799,2]
[334382334,1723014631854,-14145.5261,0.000108,2]
[334382335,1723014631863,-28909.70203348,0.000108,2]
[334382336,1723014631884,-904.95556652,0.000108,2]
[334382337,1723014631893,-34195.04443348,0.000108,2]
[334382338,1723014631926,-2757.28875659,0.000108,2]
[334382339,1723014631938,-389.62175848,0.000108,2]
[334382340,1723014631949,-450.0,0.000108,2]
[334382341,1723014631960,-1515.91547267,0.000108,2]
[334382497,1723014637664,-2006.16441749,0.000108,2]
[334382504,1723014637749,-1999.05404821,0.000108,2]
[334382506,1723014637760,-1294.19060398,0.000108,2]
[334382508,1723014637771,-1856.5631075,0.000108,2]
[334382510,1723014637783,-49112.65287047,0.000108,2]
[334382513,1723014637794,-4423.50453113,0.000108,2]
[334382514,1723014637803,-679.8837,0.000108,2]
[334382515,1723014637813,-12816.16572902,0.000108,2]
[334382516,1723014637822,-150.0,0.0001089,2]
[334382517,1723014637832,-157.95458,0.0001089,2]
[334382518,1723014637841,-3014.47379,0.0001089,2]
[334382519,1723014637851,-985.04970203,0.0001089,2]
[334382520,1723014637860,-2801.6152,0.00010898,2]
[334382521,1723014637870,-41665.01066056,0.000109,2]
[334382522,1723014637881,-251.63,0.000109,2]
[334382523,1723014637892,-1803.52865084,0.000109,2]
[334382524,1723014637903,-479.23585153,0.000109,2]
[334382525,1723014637914,-500.0,0.000109,2]
[334382526,1723014637925,-14763.12446439,0.000109,2]
[334382527,1723014637936,-185537.47037268,0.000109,2]
[334382528,1723014637945,-1741.6455,0.000109,2]
[334382529,1723014637955,-819.2295393,0.000109,2]
[334382530,1723014637964,-819.22953929,0.000109,2]
[334382531,1723014637974,-819.22953929,0.000109,2]
[334382532,1723014637986,-819.22953929,0.000109,2]
[334382533,1723014637995,-819.22953929,0.000109,2]
[334382534,1723014638004,-819.22953929,0.000109,2]
[334382535,1723014638013,-819.22953929,0.000109,2]
[334382536,1723014638022,-819.22953929,0.000109,2]
[334382537,1723014638032,-527.1473869,0.00010958,2]
[334382538,1723014638040,-250.0,0.00010959,2]
[334382539,1723014638050,-5838.0,0.00010996,2]
[334382540,1723014638059,-5130.0,0.00010996,2]
[334382541,1723014638068,-1204.0,0.00010996,2]
[334382542,1723014638077,-1671.0,0.00010996,2]
[334382543,1723014638086,-9723.2180211,0.00010996,2]
[334382544,1723014638097,-1391.18950319,0.00010996,2]
[334382545,1723014638108,-3450.49798637,0.00010996,2]
[334382546,1723014638119,-729.17517403,0.00010996,2]
[334382547,1723014638130,-475.82133345,0.00010996,2]
[334382548,1723014638142,-5973.09798186,0.00010996,2]
[334382549,1723014638151,-823.484,0.00010996,2]
[334382550,1723014638160,-3294.2875294,0.00010998,2]
[334382551,1723014638170,-1255.6609707,0.00010998,2]
[334382552,1723014638179,-33143.72230117,0.00010998,2]
[334382553,1723014638190,-570.23685725,0.00010998,2]
[334382554,1723014638201,-586.27968751,0.00010998,2]
[334382555,1723014638216,-1641.96215942,0.00010998,2]
[334382556,1723014638227,-1142.42347886,0.00010998,2]
[334382557,1723014638240,-2267.7110005,0.00010998,2]
[334382558,1723014638254,-1153.0,0.00010998,2]
[334382559,1723014638265,-5486.590707,0.00010998,2]
[334382560,1723014638277,-424.88308538,0.00010998,2]
[334382561,1723014638288,-2879.43368562,0.00010998,2]
[334382562,1723014638299,-519.980028,0.00010998,2]
[334382563,1723014638310,-1656.96940033,0.00010998,2]
[334382564,1723014638323,-2109.73310926,0.00010998,2]
[334382565,1723014638334,-300.32,0.00010998,2]
[334382566,1723014638345,-2262.31006792,0.00010998,2]
[334382567,1723014638356,-775.44461026,0.00010998,2]
[334382568,1723014638367,-779.01121568,0.00010998,2]
[334382569,1723014638382,-3163.29177813,0.00010998,2]
[334382570,1723014638394,-3310.4880623,0.00010998,2]
[334382571,1723014638404,-5726.34454775,0.00010998,2]
[334382582,1723014639777,-1038.51813156,0.00010436,2]
[334382584,1723014639999,-5106.21723399,0.00010436,2]
[334382585,1723014640414,-1299.17859786,0.00010436,2]
[334382587,1723014640425,-21212.93284214,0.00010998,2]
[334382605,1723014640635,-26885.00438922,0.00010998,2]
[334382606,1723014640646,-23334.758339,0.00010998,2]
[334382607,1723014640657,-9702.4179525,0.00010998,2]
[334382608,1723014640667,-28707.3914327,0.00010998,2]
[334382609,1723014640676,-19090.359251,0.00010998,2]
[334382610,1723014640686,-2149.8029213,0.00010999,2]
[334382611,1723014640696,-1543.53,0.00010999,2]
[334382612,1723014640706,-500.0,0.00010999,2]
[334382613,1723014640716,-500.0,0.00010999,2]
[334382614,1723014640725,-978.0,0.00011,2]
[334382615,1723014640735,-88445.20885523,0.00011,2]
[334382616,1723014640745,-1114788.11700265,0.00011,2]
[334382617,1723014640755,-1595542.67013664,0.00011,2]
[334382618,1723014640764,-1355054.01428626,0.00011,2]
[334382619,1723014640774,-755942.29064248,0.00011,2]
[334382620,1723014640783,-2566680.14214205,0.00011,2]
[334382621,1723014640793,-2000.0,0.00011,2]
[334382622,1723014640802,-1003352.30347999,0.00011,2]
[334382623,1723014640812,-831309.82062205,0.00011,2]
[334382624,1723014640821,-1293373.44368668,0.00011,2]
[334382625,1723014640831,-10299.74557983,0.00011,3]
[334382626,1723014640840,-131408.23086453,0.00011,2]
[334382627,1723014640851,-9281511.5799766,0.00011,2]
[334382628,1723014640861,-664001.87107199,0.00011,2]
[334382629,1723014640873,-273.13839263,0.00011,2]
[334382630,1723014640889,-7104.61058235,0.00011,2]
[334382631,1723014640900,-6753.81,0.00011,2]
[334382632,1723014640911,-12866.70081698,0.00011,2]
[334382633,1723014640923,-17122.63442754,0.00011,2]
[334382634,1723014640936,-7480.8599,0.00011,2]
[334382635,1723014640948,-8194.3,0.00011,2]
[334382652,1723014643269,-412.640001,0.000107,2]
[334382653,1723014643280,-550.0,0.000107,2]
[334382654,1723014643300,-335.00000003,0.000107,2]
[334382659,1723014646061,-4327.77109897,0.000107,2]
[334382660,1723014646072,-1005.0,0.000109,2]
[334382661,1723014646083,-540.54469786,0.00010958,2]
[334382662,1723014646093,-478.06733626,0.00010958,2]
[334382663,1723014646103,-48272.49011016,0.00011,2]
[334382664,1723014646115,-129607.72809284,0.00011,2]
[334382665,1723014646127,-80194.10505486,0.00011,2]
[334382666,1723014646137,-2000.0,0.00011,2]
[334382667,1723014646147,-25196.92094514,0.00011,2]
[334382668,1723014646159,-173400.5812,0.00011,2]
[334382669,1723014646171,-79509.6545,0.00011,2]
[334382670,1723014646186,-40502.67236916,0.00011,2]
[334382671,1723014646199,-4719.71862452,0.00011,2]
[334382672,1723014646211,-5471.85642684,0.00011,2]
[334382673,1723014646223,-2311.00433651,0.00011,2]
[334382674,1723014647939,-44210.69348163,0.00011,2]
[334382675,1723014666171,574.37,8.483e-05,2]
[334382676,1723014801994,500.0,0.00024932,120]
[334382677,1723014802465,150.0,0.000246,30]
[334382678,1723014804378,200.0,0.00024999,120]
[334382682,1723015121108,689.49,8.219e-05,2]
[334382683,1723015155992,1000.0,9.403e-05,2]
[334382684,1723015167376,159.66,9.197e-05,2]
[334382685,1723015167786,159.66,9.22e-05,2]
[334382686,1723015167993,159.66,9.243e-05,2]
[334382687,1723015252041,250.0,9.398e-05,2]
[334382688,1723015284507,250.0,0.00021,30]
[334382689,1723015300518,233.87954149,0.00022,30]
[334382690,1723015310034,250.0,0.00022,30]
[334382691,1723015318994,250.0,0.00023,30]
[334382692,1723015325122,250.0,0.00024,30]
[334382693,1723015405110,150.0,0.000246,30]
[334382694,1723015423971,287.56,9.37e-05,2]
[334382695,1723015547431,5226.03440117,0.00024,30]
[334382696,1723015560463,380.0,0.00025,60]
[334382697,1723015576109,655.01,8.219e-05,2]
[334382699,1723015624850,200.0,9.372e-05,2]
[334382700,1723015722484,250.0,9.403e-05,2]
[334382715,1723015831894,-159.12,9.834e-05,2]
[334382717,1723015831904,-187.4,9.888e-05,2]
[334382719,1723015831913,-1550.0,0.0001,2]
[334382720,1723015831923,-1078.78162913,0.0001,2]
[334382723,1723015831932,-438.73,0.0001025,2]
[334382726,1723015831942,-300.0,0.0001025,2]
[334382729,1723015831953,-4817.25972046,0.0001025,2]
[334382731,1723015831962,-5949.27,0.00010251,2]
[334382732,1723015831971,-150.0,0.00010281,2]
[334382733,1723015831980,-173.67185199,0.00010282,2]
[334382734,1723015831990,-155.59379774,0.00010282,2]
[334382735,1723015831999,-302.0668488,0.00010282,2]
[334382736,1723015832010,-166.72214166,0.00010282,2]
[334382737,1723015832019,-174.09097767,0.00010282,2]
[334382738,1723015832028,-301.2565096,0.00010282,2]
[334382739,1723015832037,-158.35644614,0.00010282,2]
[334382740,1723015832046,-209.82137595,0.00010282,2]
[334382741,1723015832055,-160.40670659,0.00010282,2]
[334382742,1723015832064,-257.03900718,0.00010282,2]
[334382743,1723015832074,-261.01358856,0.00010282,2]
[334382744,1723015832083,-160.41316366,0.00010282,2]
[334382745,1723015832093,-617.83929837,0.00010282,2]
[334382746,1723015832102,-203.63127412,0.00010282,2]
[334382747,1723015832112,-177.24155204,0.00010282,2]
[334382748,1723015832121,-180.3860494,0.00010282,2]
[334382749,1723015832131,-160.41571684,0.00010282,2]
[334382750,1723015832141,-169.82773871,0.00010282,2]
[334382751,1723015832151,-255.72134002,0.00010282,2]
[334382752,1723015832161,-196.90747194,0.00010282,2]
[334382753,1723015832170,-170.86898331,0.00010282,2]
[334382754,1723015832180,-303.61999163,0.00010282,2]
[334382755,1723015832189,-219.88,0.00010282,2]
[334382756,1723015832200,-150.99,0.00010334,2]
[334382757,1723015832209,-21121.58053324,0.0001038,2]
[334382758,1723015832229,-2475.883476,0.0001038,2]
[334382759,1723015832241,-49727.76699076,0.0001038,2]
[334382760,1723015832250,-420.77,0.000104,2]
[334382761,1723015832259,-151.57,0.000104,2]
[334382762,1723015832268,-834.88,0.000104,2]
[334382763,1723015832278,-150.66,0.000104,2]
[334382764,1723015832287,-150.0,0.000104,2]
[334382765,1723015832295,-150.0,0.000104,2]
[334382766,1723015832304,-426.11,0.000104,2]
[334382767,1723015832313,-150.0,0.000104,2]
[334382768,1723015832322,-834.88,0.000104,2]
[334382769,1723015832331,-150.0,0.000104,2]
[334382770,1723015832339,-150.0,0.000104,2]
[334382771,1723015832348,-150.0,0.000104,2]
[334382772,1723015832357,-530.69,0.000104,2]
[334382773,1723015832365,-420.77,0.000104,2]
[334382774,1723015832374,-356.33,0.000104,2]
[334382775,1723015832383,-420.77,0.000104,2]
[334382776,1723015832392,-834.88,0.000104,2]
[334382777,1723015832401,-426.11,0.000104,2]
[334382778,1723015832410,-150.0,0.000104,2]
[334382779,1723015832418,-530.69,0.000104,2]
[334382780,1723015832427,-150.0,0.000104,2]
[334382781,1723015832436,-834.88,0.000104,2]
[334382782,1723015832446,-150.0,0.000104,2]
[334382783,1723015832455,-150.0,0.000104,2]
[334382784,1723015832464,-765.16,0.000104,2]
[334382785,1723015832471,-156.72,0.000104,2]
[334382786,1723015832480,-356.33,0.000104,2]
[334382787,1723015832489,-150.0,0.000104,2]
[334382788,1723015832499,-150.0,0.000104,2]
[334382789,1723015832508,-834.88,0.000104,2]
[334382790,1723015832517,-150.0,0.000104,2]
[334382791,1723015832527,-530.69,0.000104,2]
[334382792,1723015832536,-426.11,0.000104,2]
[334382793,1723015832546,-420.77,0.000104,2]
[334382794,1723015832555,-356.33,0.000104,2]
[334382795,1723015832564,-150.0,0.000104,2]
[334382796,1723015832574,-426.11,0.000104,2]
[334382797,1723015832583,-150.0,0.000104,2]
[334382798,1723015832592,-150.0,0.000104,2]
[334382799,1723015832601,-512.87,0.000104,2]
[334382800,1723015832610,-150.0,0.000104,2]
[334382801,1723015832619,-834.88,0.000104,2]
[334382802,1723015832628,-530.69,0.000104,2]
[334382803,1723015832638,-841.44,0.000104,2]
[334382804,1723015832647,-150.0,0.000104,2]
[334382805,1723015832659,-150.0,0.000104,2]
[334382806,1723015832668,-875.32,0.000104,2]
[334382807,1723015832677,-150.0,0.000104,2]
[334382808,1723015832687,-530.69,0.000104,2]
[334382809,1723015832697,-150.0,0.000104,2]
[334382810,1723015832706,-150.0,0.000104,2]
[334382811,1723015832715,-420.37,0.000104,2]
[334382812,1723015832725,-356.33,0.000104,2]
[334382813,1723015832736,-834.88,0.000104,2]
[334382814,1723015832745,-150.0,0.000104,2]
[334382815,1723015832754,-150.0,0.000104,2]
[334382816,1723015832763,-356.33,0.000104,2]
[334382817,1723015832772,-426.11,0.000104,2]
[334382818,1723015832782,-150.0,0.000104,2]
[334382819,1723015832791,-530.69,0.000104,2]
[334382820,1723015832800,-834.88,0.000104,2]
[334382821,1723015832809,-150.0,0.000104,2]
[334382822,1723015832819,-150.0,0.000104,2]
[334382823,1723015832828,-150.0,0.000104,2]
[334382824,1723015832837,-426.11,0.000104,2]
[334382825,1723015832846,-150.0,0.000104,2]
[334382826,1723015832856,-530.69,0.000104,2]
[334382827,1723015832865,-834.88,0.000104,2]
[334382828,1723015832874,-356.33,0.000104,2]
[334382829,1723015832884,-711.32,0.000104,2]
[334382830,1723015832894,-150.0,0.000104,2]
[334382831,1723015832903,-150.0,0.000104,2]
[334382832,1723015832912,-426.11,0.000104,2]
[334382833,1723015832922,-177.08737479,0.000104,2]
[334382834,1723015832931,-496.336872,0.00010414,2]
[334382835,1723015832940,-279.125715,0.00010414,2]
[334382836,1723015832952,-13185.361734,0.00010414,2]
[334382837,1723015832961,-24227.394751,0.00010414,2]
[334382838,1723015832970,-168.309179,0.00010414,2]
[334382839,1723015832980,-4690.208706,0.00010414,2]
[334382840,1723015832989,-828.145231,0.00010414,2]
[334382841,1723015832999,-418.102079,0.00010414,2]
[334382842,1723015833009,-21734.242707,0.00010414,2]
[334382843,1723015833019,-21416.955277,0.00010414,2]
[334382844,1723015833028,-10000.0,0.00010436,2]
[334382845,1723015833038,-834.88,0.00010441,2]
[334382846,1723015833047,-420.77,0.00010441,2]
[334382847,1723015833057,-655.01,0.00010443,2]
[334382848,1723015833067,-200.0,0.00010473,2]
[334382849,1723015833076,-200.7247488,0.00010473,2]
[334382850,1723015833086,-321.44105497,0.00010477,2]
[334382851,1723015833096,-47190.12757968,0.0001048,2]
[334382852,1723015833117,-51590.0,0.0001048,2]
[334382853,1723015833144,-445910.32529583,0.0001048,2]
[334382854,1723015833154,-218031.47204718,0.0001049,3]
[334382855,1723015833163,-150.0,0.000105,2]
[334382856,1723015833173,-150.0,0.000105,2]
[334382857,1723015833183,-356.33,0.000105,2]
[334382858,1723015833192,-530.69,0.000105,2]
[334382859,1723015833203,-150.0,0.000105,2]
[334382860,1723015833213,-881.59,0.000105,2]
[334382861,1723015833222,-356.33,0.000105,2]
[334382862,1723015833232,-150.0,0.000105,2]
[334382863,1723015833241,-356.33,0.000105,2]
[334382864,1723015833250,-151.28,0.000105,2]
[334382865,1723015833260,-192.96,0.000105,2]
[334382866,1723015833269,-628.09,0.000105,2]
[334382867,1723015833278,-356.33,0.000105,2]
[334382868,1723015833287,-356.33,0.000105,2]
[334382869,1723015833297,-356.09,0.000105,2]
[334382870,1723015833306,-426.11,0.000105,2]
[334382871,1723015833315,-150.0,0.000105,2]
[334382872,1723015833325,-150.0,0.000105,2]
[334382873,1723015833334,-150.0,0.000105,2]
[334382874,1723015833344,-356.33,0.000105,2]
[334382875,1723015833353,-150.0,0.000105,2]
[334382876,1723015833362,-530.69,0.000105,2]
[334382877,1723015833372,-426.11,0.000105,2]
[334382878,1723015833382,-356.33,0.000105,2]
[334382879,1723015833391,-302.36,0.000105,2]
[334382880,1723015833400,-150.0,0.000105,2]
[334382881,1723015833410,-150.0,0.000105,2]
[334382882,1723015833419,-425.16,0.000105,2]
[334382883,1723015833428,-150.0,0.000105,2]
[334382884,1723015833437,-356.33,0.000105,2]
[334382885,1723015833449,-300.0,0.000105,2]
[334382886,1723015833458,-150.0,0.000105,2]
[334382887,1723015833469,-287.56,0.00010541,2]
[334382888,1723015833478,-200.0,0.00010544,2]
[334382889,1723015833488,-496.336872,0.00010544,2]
[334382890,1723015833497,-279.125715,0.00010544,2]
[334382891,1723015833507,-13185.361734,0.00010544,2]
[334382892,1723015833516,-24227.394751,0.00010544,2]
[334382893,1723015833527,-4690.208706,0.00010544,2]
[334382894,1723015833536,-828.145231,0.00010544,2]
[334382895,1723015833545,-418.102079,0.00010544,2]
[334382896,1723015833554,-21734.242707,0.00010544,2]
[334382897,1723015833563,-21416.955277,0.00010544,2]
[334382898,1723015833572,-177.08737477,0.0001055,2]
[334382899,1723015833582,-1000.0,0.00010578,2]
[334382900,1723015833592,-426.11,0.00010578,2]
[334382901,1723015833601,-530.69,0.00010578,2]
[334382902,1723015833610,-150.0,0.00010578,2]
[334382903,1723015833619,-150.0,0.00010578,2]
[334382904,1723015833629,-356.33,0.00010578,2]
[334382905,1723015833638,-150.0,0.00010578,2]
[334382906,1723015833648,-150.0,0.00010578,2]
[334382907,1723015833660,-168.309179,0.00010587,2]
[334382908,1723015833670,-496.336872,0.00010674,2]
[334382909,1723015833679,-279.125715,0.00010674,2]
[334382910,1723015833688,-13185.361734,0.00010674,2]
[334382911,1723015833699,-24227.394751,0.00010674,2]
[334382912,1723015833708,-4690.208706,0.00010674,2]
[334382913,1723015833718,-828.145231,0.00010674,2]
[334382914,1723015833727,-418.102079,0.00010674,2]
[334382915,1723015833739,-21734.242707,0.00010674,2]
[334382916,1723015833749,-21416.955277,0.00010674,2]
[334382917,1723015833911,-530.69,0.000107,2]
[334382918,1723015833921,-150.0,0.000107,2]
[334382919,1723015833930,-356.33,0.000107,2]
[334382920,1723015833939,-177.08737477,0.000107,2]
[334382921,1723015833951,-1000.0,0.000107,2]
[334382922,1723015833960,-7500.0,0.00010704,2]
[334382923,1723015833970,-168.309179,0.00010761,2]
[334382924,1723015833979,-321.44105497,0.00010797,2]
[334382925,1723015833989,-500.0,0.000108,2]
[334382926,1723015833999,-4254.74235048,0.000108,2]
[334382927,1723015834011,-4603.87994601,0.000108,2]
[334382928,1723015838379,-320.46117507,0.0001039,2]
[334382929,1723015838390,-851.99027965,0.00010436,2]
[334382930,1723015838399,-10.62242838,0.000108,2]
[334382931,1723015838478,-24407.60000001,0.000108,2]
[334382932,1723015838489,-1279.7631426,0.000108,2]
[334382933,1723015838594,-11365.39817298,0.000108,2]
[334382976,1723015840099,-924.899999,0.000108,2]
[334382977,1723015840414,-1642.8995,0.000108,2]
[334382978,1723015840427,-99248.49869185,0.000108,2]
[334382979,1723015840440,-91606.43876869,0.000108,2]
[334382980,1723015840450,-530.69,0.000108,2]
[334382981,1723015840459,-496.336872,0.00010804,2]
[334382982,1723015840468,-279.125715,0.00010804,2]
[334382983,1723015840478,-13185.361734,0.00010804,2]
[334382984,1723015840488,-24227.394751,0.00010804,2]
[334382985,1723015840497,-4690.208706,0.00010804,2]
[334382986,1723015840506,-828.145231,0.00010804,2]
[334382987,1723015840516,-418.102079,0.00010804,2]
[334382988,1723015840525,-21734.242707,0.00010804,2]
[334382989,1723015840535,-21416.955277,0.00010804,2]
[334382990,1723015840544,-173.56738931,0.00010886,2]
[334382991,1723015840554,-173.56738931,0.0001089,2]
[334382992,1723015840563,-173.56738931,0.00010893,2]
[334382993,1723015840572,-173.56738931,0.00010897,2]
[334382994,1723015840581,-2947.78501054,0.00010899,2]
[334382995,1723015840590,-2947.78501053,0.00010899,2]
[334382996,1723015840599,-2947.78501053,0.00010899,2]
[334382997,1723015840609,-2947.78501053,0.00010899,2]
[334382998,1723015840619,-2947.78501053,0.00010899,2]
[334382999,1723015840628,-2947.78501053,0.00010899,2]